Workbook

Sheet 56、2021年公共预算收入明细
A1: 附表56
A2: 大洪山风景名胜区2022年一般公共预算收入明细表
C3: 单位：万元
A4: 科目 | B4: 项 目 | C4: 预算数 | D4: 备注
B5: 一、地方一般公共预算收入 | C5: =C6+C22 -> 3704
A6: 101 | B6: （一）税收收入 | C6: =SUM(C7:C21) -> 1700
A7: 10101 | B7: 增值税 | C7: 670
A8: 10104 | B8: 企业所得税 | C8: 640
A9: 10106 | B9: 个人所得税
A10: 10107 | B10: 资源税 | C10: 25
A11: 10109 | B11: 城市维护建设税
A12: 10110 | B12: 房产税 | C12: 120
A13: 10111 | B13: 印花税 | C13: 54
A14: 10112 | B14: 城镇土地使用税 | C14: 30
A15: 10113 | B15: 土地增值税 | C15: 70
A16: 10114 | B16: 车船税 | C16: 40
A17: 10118 | B17: 耕地占用税 | C17: 1
A18: 10119 | B18: 契税 | C18: 30
A19: 10120 | B19: 烟叶税 | C19: 20
A20: 10121 | B20: 环境保护税
A21: 10199 | B21: 其他税收收入
A22: 103 | B22: （二）非税收入 | C22: =SUM(C23:C30) -> 2004
A23: 10302 | B23: 专项收入 | C23: 1686
A24: 10304 | B24: 行政事业性收费收入 | C24: 13
A25: 10305 | B25: 罚没收入 | C25: 32
A26: 10306 | B26: 国有资本经营收入
A27: 10307 | B27: 国有资源（资产）有偿使用收入 | C27: 273
A28: 10308 | B28: 捐赠收入
A29: 10309 | B29: 政府住房基金收入
A30: 10399 | B30: 其他收入
A31: 110 | B31: 二、转移性收入 | C31: =C32+C34+C70+C92+C95+C97+C103+C109 -> 9236
A32: 11001 | B32: （一）返还性收入 | C32: 38
A33: 1100199 | B33: 其它返还性收入 | C33: 38
A34: 11002 | B34: （二）一般性转移支付收入 | C34: =SUM(C35:C69) -> 1897
A35: 1100201 | B35: 体制补助收入
A36: 1100202 | B36: 均衡性转移支付收入 | C36: 174
A37: 1100207 | B37: 县级基本财力保障机制奖补资金收入 | C37: 525
A38: 1100208 | B38: 结算补助收入 | C38: 664
A39: 1100220 | B39: 基层公检法司转移支付收入
A40: 1100221 | B40: 城乡义务教育转移支付收入
A41: 1100222 | B41: 基本养老金转移支付收入
A42: 1100225 | B42: 产粮大县奖励资金收入 | C42: 90
A43: 1100226 | B43: 重点生态功能区转移支付收入
A44: 1100227 | B44: 固定数额补助收入 | C44: 444
A45: 1100228 | B45: 革命老区转移支付收入
A46: 1100229 | B46: 民族地区转移支付收入
A47: 1100241 | B47: 一般公共服务共同财政事权转移支付收入
A48: 1100242 | B48: 外交共同财政事权转移支付收入
A49: 1100243 | B49: 国防支出共同财政事权转移支付收入
A50: 1100244 | B50: 公共安全共同财政事权转移支付收入
A51: 1100245 | B51: 教育共同财政事权转移支付收入
A52: 1100246 | B52: 科学技术共同财政事权转移支付收入
A53: 1100247 | B53: 文化旅游体育与传媒共同财政事权转移支付收入
A54: 1100248 | B54: 社会保障和就业共同财政事权转移支付收入
A55: 1100249 | B55: 卫生健康共同财政事权转移支付收入
A56: 1100250 | B56: 节能环保 共同财政事权转移支付收入
A57: 1100251 | B57: 城乡社区共同财政事权转移支付收入
A58: 1100252 | B58: 农林水 共同财政事权转移支付收入
A59: 1100253 | B59: 交通运输 共同财政事权转移支付收入
A60: 1100254 | B60: 资源勘探工业信息等共同财政事权转移支付收入
A61: 1100255 | B61: 商业服务业等 共同财政事权转移支付收入
A62: 1100256 | B62: 金融共同财政事权转移支付收入
A63: 1100257 | B63: 自然资源海洋气象等共同财政事权转移支付收入
A64: 1100258 | B64: 住房保障共同财政事权转移支付收入
A65: 1100260 | B65: 灾害防治及应急管理共同财政事权转移支付收入
A66: 1100259 | B66: 粮油物资储备共同财政事权转移支付收入
A67: 1100260 | B67: 灾害防治及应急管理共同财政事权转移支付收入
A68: 1100269 | B68: 其他共同财政事权转移支付收入
A69: 1100299 | B69: 其他一般性转移支付收入
A70: 11003 | B70: （三）专项转移支付收入 | C70: =SUM(C71:C91) -> 1137
A71: 1100301 | B71: 一般公共服务 | C71: 32
A72: 1100302 | B72: 外交 | C72: 23
A73: 1100303 | B73: 国防支出
A74: 1100304 | B74: 公共安全
A75: 1100305 | B75: 教育
A76: 1100306 | B76: 科学技术
A77: 1100307 | B77: 文化旅游体育与传媒
A78: 1100308 | B78: 社会保障和就业 | C78: 657
A79: 1100310 | B79: 卫生健康 | C79: 91
A80: 1100311 | B80: 节能环保
A81: 1100312 | B81: 城乡社区 | C81: 30
A82: 1100313 | B82: 农林水 | C82: 269
A83: 1100314 | B83: 交通运输
A84: 1100315 | B84: 资源勘探工业信息等
A85: 1100316 | B85: 商业服务业等
A86: 1100317 | B86: 金融
A87: 1100320 | B87: 自然资源海洋气象等
A88: 1100321 | B88: 住房保障
A89: 1100322 | B89: 粮油物资储备
A90: 1100324 | B90: 灾害防治及应急管理 | C90: 35
A91: 1100399 | B91: 其他收入
A92: 11006 | B92: （四）下级上解收入
A93: 1100601 | B93: 体制上解收入
A94: 1100602 | B94: 专项上解收入
A95: 11008 | B95: （五）上年结转收入 | C95: 139
B96: 上年专项结转 | C96: 139
A97: 11009 | B97: （六）调入资金 | C97: =SUM(C98:C102) -> 6025
A98: 1100901 | B98: 调入一般公共预算资金
A99: 110090102 | B99: 从政府性基金预算调入一般公共预算资金 | C99: 5885
A100: 110090103 | B100: 从国有资本经营预算调入一般公共预算资金
A101: 110090104 | B101: 从抗疫特别国债调入一般公共预算资金
A102: 110090199 | B102: 从其他资金调入一般公共预算资金 | C102: 140
A103: 11011 | B103: （七）债务转贷收入
A104: 1101101 | B104: 地方政府一般债务转贷收入
A105: 110110101 | B105: 地方政府一般债券转贷收入
B106: 新增债券
B107: 再融资债券
A108: 110110103 | B108: 地方政府向国际组织借款转贷收入
A109: 11015 | B109: （八）动用预算稳定调节基金
B111: 收 入 总 计 | C111: =C5+C31 -> 12940

Sheet 57、本级公共预算支出明细
A1: 附表57
A2: 大洪山风景名胜区2022年一般公共预算支出明细表
C3: 单位:万元
A4: 科目编码 | B4: 科目名称 | C4: 预算数 | D4: 备注
B5: 地方一般公共预算支出合计 | C5: =C6+C38+C41+C47+C52+C66+C104+C122+C125+C134+C159+C162+C165+C171+C177+C182+C183+C186 -> 8069
A6: 201 | B6: 一般公共服务支出 | C6: 857
A7: 20103 | B7: 政府办公厅(室)及相关机构事务 | C7: 559
A8: 2010301 | B8: 行政运行 | C8: 399
A9: 2010305 | B9: 专项业务活动 | C9: 135
A10: 2010308 | B10: 信访事务 | C10: 15
A11: 2010399 | B11: 其他政府办公厅(室)及相关机构事务支出 | C11: 10
A12: 20104 | B12: 发展与改革事务 | C12: 20
A13: 2010406 | B13: 社会事业发展规划 | C13: 20
A14: 20105 | B14: 统计信息事务 | C14: 5
A15: 2010507 | B15: 专项普查活动 | C15: 5
A16: 20106 | B16: 财政事务 | C16: 128
A17: 2010601 | B17: 行政运行 | C17: 85
A18: 2010605 | B18: 财政国库业务 | C18: 13
A19: 2010607 | B19: 信息化建设 | C19: 30
A20: 20108 | B20: 审计事务 | C20: 20
A21: 2010804 | B21: 审计业务 | C21: 20
A22: 20111 | B22: 纪检监察事务 | C22: 30
A23: 2011199 | B23: 其他纪检监察事务支出 | C23: 30
A24: 20113 | B24: 商贸事务 | C24: 30
A25: 2011308 | B25: 招商引资 | C25: 30
A26: 20129 | B26: 群众团体事务 | C26: 2
A27: 2012999 | B27: 其他群众团体事务支出 | C27: 2
A28: 20132 | B28: 组织事务 | C28: 36
A29: 2013250 | B29: 其他组织事务支出 | C29: 36
A30: 20133 | B30: 宣传事务 | C30: 15
A31: 2013301 | B31: 行政运行 | C31: 15
A32: 20134 | B32: 统战事务 | C32: 3
A33: 2013404 | B33: 宗教事务 | C33: 3
A34: 20137 | B34: 网信事务 | C34: 1
A35: 2013704 | B35: 信息安全事务 | C35: 1
A36: 20138 | B36: 市场监督管理事务 | C36: 8
A37: 2013804 | B37: 市场主体管理 | C37: 8
A38: 203 | B38: 国防支出 | C38: 3
A39: 20306 | B39: 国防动员 | C39: 3
A40: 2030601 | B40: 兵役征集 | C40: 3
A41: 204 | B41: 公共安全支出 | C41: 59
A42: 20402 | B42: 公安 | C42: 53
A43: 2040201 | B43: 行政运行 | C43: 18
A44: 2040219 | B44: 信息化建设 | C44: 35
A45: 20406 | B45: 司法 | C45: 6
A46: 2040607 | B46: 公共法律服务 | C46: 6
A47: 205 | B47: 教育支出 | C47: 846
A48: 20502 | B48: 普通教育 | C48: 846
A49: 2050201 | B49: 学前教育 | C49: 21
A50: 2050202 | B50: 小学教育 | C50: 423
A51: 2050203 | B51: 初中教育 | C51: 402
A52: 207 | B52: 文化旅游体育与传媒支出 | C52: 155
A53: 20701 | B53: 文化和旅游 | C53: 71
A54: 2070101 | B54: 行政运行 | C54: 6
A55: 2070109 | B55: 群众文化 | C55: 6
A56: 2070113 | B56: 旅游宣传 | C56: 59
A57: 20702 | B57: 文物 | C57: 1
A58: 2070204 | B58: 文物保护 | C58: 1
A59: 20706 | B59: 新闻出版电影 | C59: 35
A60: 2070604 | B60: 新闻通讯 | C60: 35
A61: 20708 | B61: 广播电视 | C61: 40
A62: 2070808 | B62: 广播电视事务 | C62: 40
A63: 20799 | B63: 其他文化旅游体育与传媒支出 | C63: 8
A64: 2079902 | B64: 宣传文化发展专项支出 | C64: 5
A65: 2079999 | B65: 其他文化旅游体育与传媒支出 | C65: 3
A66: 208 | B66: 社会保障和就业支出 | C66: 1558
A67: 20801 | B67: 人力资源和社会保障管理事务 | C67: 53
A68: 2080109 | B68: 社会保险经办机构 | C68: 53
A69: 20802 | B69: 民政管理事务 | C69: 40
A70: 2080201 | B70: 行政运行 | C70: 40
A71: 20805 | B71: 行政事业单位养老支出 | C71: 248
A72: 2080502 | B72: 事业单位离退休 | C72: 11
A73: 2080505 | B73: 机关事业单位基本养老保险缴费支出 | C73: 237
A74: 20808 | B74: 抚恤 | C74: 172
A75: 2080801 | B75: 死亡抚恤 | C75: 31
A76: 2080802 | B76: 伤残抚恤 | C76: 2
A77: 2080803 | B77: 在乡复员、退伍军人生活补助 | C77: 126
A78: 2080805 | B78: 义务兵优待 | C78: 13
A79: 20809 | B79: 退役安置 | C79: 13
A80: 2080901 | B80: 退役士兵安置 | C80: 13
A81: 20810 | B81: 社会福利 | C81: 68
A82: 2081001 | B82: 儿童福利 | C82: 14
A83: 2081002 | B83: 老年福利 | C83: 24
A84: 2081004 | B84: 殡葬 | C84: 30
A85: 20811 | B85: 残疾人事业 | C85: 50
A86: 2081107 | B86: 残疾人生活和护理补贴 | C86: 50
A87: 20819 | B87: 最低生活保障 | C87: 200
A88: 2081902 | B88: 农村最低生活保障金支出 | C88: 200
A89: 20820 | B89: 临时救助 | C89: 35
A90: 2082001 | B90: 临时救助支出 | C90: 35
A91: 20821 | B91: 特困人员救助供养 | C91: 280
A92: 2082102 | B92: 农村特困人员救助供养支出 | C92: 280
A93: 20825 | B93: 其他生活救助 | C93: 58
A94: 2082502 | B94: 其他农村生活救助 | C94: 58
A95: 20826 | B95: 财政对基本养老保险基金的补助 | C95: 255
A96: 2082601 | B96: 财政对企业职工基本养老保险基金的补助 | C96: 115
A97: 2082602 | B97: 财政对城乡居民基本养老保险基金的补助 | C97: 140
A98: 20828 | B98: 退役军人管理事务 | C98: 23
A99: 2082804 | B99: 拥军优属 | C99: 8
A100: 2082850 | B100: 事业运行 | C100: 15
A101: 20830 | B101: 财政代缴社会保险费支出 | C101: 63
A102: 2083001 | B102: 财政代缴城乡居民基本养老保险费支出 | C102: 36
A103: 2083099 | B103: 财政代缴其他社会保险费支出 | C103: 27
A104: 210 | B104: 卫生健康支出 | C104: 699
A105: 21003 | B105: 基层医疗卫生机构 | C105: 83
A106: 2100302 | B106: 乡镇卫生院 | C106: 70
A107: 2100399 | B107: 其他基层医疗卫生机构支出 | C107: 13
A108: 21004 | B108: 公共卫生 | C108: 74
A109: 2100408 | B109: 基本公共卫生服务 | C109: 24
A110: 2100409 | B110: 重大公共卫生服务 | C110: 50
A111: 21007 | B111: 计划生育事务 | C111: 76
A112: 2100717 | B112: 计划生育服务 | C112: 76
A113: 21011 | B113: 行政事业单位医疗 | C113: 182
A114: 2101101 | B114: 行政单位医疗 | C114: 60
A115: 2101102 | B115: 事业单位医疗 | C115: 122
A116: 21012 | B116: 财政对基本医疗保险基金的补助 | C116: 190
A117: 2101202 | B117: 财政对城乡居民基本医疗保险基金的补助 | C117: 190
A118: 21013 | B118: 医疗救助 | C118: 85
A119: 2101301 | B119: 城乡医疗救助 | C119: 85
A120: 21014 | B120: 优抚对象医疗 | C120: 9
A121: 2101401 | B121: 优抚对象医疗补助 | C121: 9
A122: 211 | B122: 节能环保支出 | C122: 15
A123: 21103 | B123: 污染防治 | C123: 15
A124: 2110301 | B124: 大气 | C124: 15
A125: 212 | B125: 城乡社区支出 | C125: 120
A126: 21201 | B126: 城乡社区管理事务 | C126: 65
A127: 2120104 | B127: 城管执法 | C127: 65
A128: 21202 | B128: 城乡社区规划与管理 | C128: 5
A129: 2120201 | B129: 城乡社区规划与管理 | C129: 5
A130: 21203 | B130: 城乡社区公共设施 | C130: 20
A131: 2120303 | B131: 小城镇基础设施建设 | C131: 20
A132: 21205 | B132: 城乡社区环境卫生 | C132: 30
A133: 2120501 | B133: 城乡社区环境卫生 | C133: 30
A134: 213 | B134: 农林水支出 | C134: 826
A135: 21301 | B135: 农业农村 | C135: 68
A136: 2130104 | B136: 事业运行 | C136: 18
A137: 2130108 | B137: 病虫害控制 | C137: 7
A138: 2130126 | B138: 农村社会事业 | C138: 10
A139: 2130199 | B139: 其他农业农村支出 | C139: 33
A140: 21302 | B140: 林业和草原 | C140: 341
A141: 2130201 | B141: 行政运行 | C141: 44
A142: 2130207 | B142: 森林资源管理 | C142: 64
A143: 2130209 | B143: 森林生态效益补偿 | C143: 10
A144: 2130210 | B144: 自然保护区等管理 | C144: 50
A145: 2130211 | B145: 动植物保护 | C145: 50
A146: 2130213 | B146: 执法与监督 | C146: 5
A147: 2130234 | B147: 林业草原防灾减灾 | C147: 118
A148: 21303 | B148: 水利 | C148: 29
A149: 2130301 | B149: 行政运行 | C149: 8
A150: 2130306 | B150: 水利工程运行与维护 | C150: 9
A151: 2130311 | B151: 水资源节约管理与保护 | C151: 2
A152: 2130314 | B152: 防汛 | C152: 3
A153: 2130399 | B153: 其他水利支出 | C153: 7
A154: 21305 | B154: 巩固脱贫衔接乡村振兴 | C154: 165
A155: 2130505 | B155: 生产发展 | C155: 165
A156: 21307 | B156: 农村综合改革 | C156: 223
A157: 2130705 | B157: 对村民委员会和村党支部的补助 | C157: 205
A158: 2130799 | B158: 其他农村综合改革支出 | C158: 18
A159: 214 | B159: 交通运输支出 | C159: 10
A160: 21401 | B160: 公路水路运输 | C160: 10
A161: 2140106 | B161: 公路养护 | C161: 10
A162: 215 | B162: 资源勘探工业信息等支出 | C162: 320
A163: 21508 | B163: 支持中小企业发展和管理支出 | C163: 320
A164: 2150899 | B164: 中小企业发展专项 | C164: 320
A165: 220 | B165: 自然资源海洋气象等支出 | C165: 665
A166: 22001 | B166: 自然资源事务 | C166: 665
A167: 2200104 | B167: 自然资源规划及管理 | C167: 30
A168: 2200106 | B168: 自然资源利用与保护 | C168: 535
A169: 2200107 | B169: 自然资源社会公益服务 | C169: 4
A170: 2200150 | B170: 事业运行 | C170: 96
A171: 221 | B171: 住房保障支出 | C171: 303
A172: 22102 | B172: 住房改革支出 | C172: 203
A173: 2210201 | B173: 住房公积金 | C173: 167
A174: 2210203 | B174: 提租补贴 | C174: 36
A175: 22103 | B175: 城乡社区住宅 | C175: 100
A176: 2210301 | B176: 公有住房建设和维修改造支出 | C176: 100
A177: 224 | B177: 灾害防治及应急管理支出 | C177: 38
A178: 22401 | B178: 应急管理事务 | C178: 3
A179: 2240106 | B179: 安全监管 | C179: 3
A180: 22407 | B180: 自然灾害救灾及恢复重建支出 | C180: 35
A181: 2240703 | B181: 自然灾害救灾补助 | C181: 35
A182: 227 | B182: 预备费 | C182: 100
A183: 229 | B183: 其他支出 | C183: 1260
A184: 22902 | B184: 年初预留 | C184: 1260
A185: 2290201 | B185: 年初预留 | C185: 1260
A186: 232 | B186: 债务付息支出 | C186: 235
A187: 23203 | B187: 地方政府一般债务付息支出 | C187: 235
A188: 2320301 | B188: 地方政府一般债券付息支出 | C188: 235
B190: 转移性支出合计 | C190: =C191+C197 -> 4871
A191: 230 | B191: 转移性支出 | C191: =SUM(C192:C196) -> 1744
A192: 23002 | B192: 一般性转移支付
A193: 23003 | B193: 专项转移支付
A194: 23006 | B194: 上解支出 | C194: 515
A195: 23009 | B195: 年终结余 | C195: 1229
A196: 23015 | B196: 安排预算稳定调节基金
A197: 231 | B197: 债务还本支出 | C197: 3127
A198: 23103 | B198: 地方政府一般债务还本支出 | C198: 3127
B199: 支出总计 | C199: =C5+C190 -> 12940

Sheet 58、经济分类
A1: 附表58
A2: 大洪山风景名胜区2022年一般公共预算支出政府经济分类情况表
P3: 单位:万元
A4: 功能科目类名称 | B4: 总计 | C4: 机关工资福利支出 | D4: 机关商品和服务支出 | E4: 机关资本性支出（一） | F4: 机关资本性支出（二） | G4: 对事业单位经常性补助 | H4: 对事业单位资本性补助 | I4: 对企业补助 | J4: 对企业资本性支出 | K4: 对个人和家庭的补助 | L4: 对社会保障基金补助 | M4: 债务利息及费用支出 | N4: 债务还本支出 | O4: 转移性支出 | P4: 预备费及预留 | Q4: 其他支出
A5: 合计 | B5: =SUM(B6:B30) -> 12940 | C5: 879 | D5: 1191 | E5: 100 | F5: 0 | G5: 2318 | H5: 0 | I5: 320 | J5: 0 | K5: 1461 | L5: 0 | M5: 235 | N5: 3127 | O5: 1744 | P5: 1360 | Q5: 205
A6: 一般公共服务支出 | B6: =SUM(C6:Q6) -> 857 | C6: 486 | D6: 371
A7: 国防支出 | B7: 3 | D7: 3
A8: 公共安全支出 | B8: 59 | D8: 59
A9: 教育支出 | B9: 846 | G9: 846
A10: 科学技术支出 | B10: 0
A11: 文化旅游体育与传媒支出 | B11: 155 | C11: 6 | D11: 149
A12: 社会保障和就业支出 | B12: 1558 | C12: 152 | G12: 153 | K12: 1253
A13: 卫生健康支出 | B13: 699 | C13: 61 | G13: 468 | K13: 170
A14: 节能环保支出 | B14: 15 | D14: 15
A15: 城乡社区支出 | B15: 120 | C15: 65 | D15: 55
A16: 农林水支出 | B16: 826 | C16: 44 | D16: 539 | G16: 38 | Q16: 205
A17: 交通运输支出 | B17: 10 | G17: 10
A18: 资源勘探工业信息等支出 | B18: 320 | I18: 320
A19: 商业服务业等支出 | B19: 0
A20: 援助其他地区支出 | B20: 0
A21: 自然资源海洋气象等支出 | B21: 665 | G21: 665
A22: 住房保障支出 | B22: 303 | C22: 65 | E22: 100 | G22: 138
A23: 粮油物资储备支出 | B23: 0
A24: 灾害防治及应急管理支出 | B24: 38 | K24: 38
A25: 预备费 | B25: 100 | P25: 100
A26: 转移性支出 | B26: 1744 | O26: 1744
A27: 其他支出 | B27: 1260 | P27: 1260
A28: 债务还本支出 | B28: 3127 | N28: 3127
A29: 债务付息支出 | B29: 235 | M29: 235
A30: 债务发行费用支出 | B30: 0

Sheet 59、基本支出
A1: 附表59
A2: 大洪山风景名胜区2022年一般公共预算基本支出表
E3: 单位:万元
A4: 支出经济分类 | C4: 2022年预算数
A5: 科目编码 | B5: 科目名称 | C5: 合计 | D5: 人员支出 | E5: 公用支出
B6: 合计 | C6: =D6+E6 -> 2023 | D6: =D7+D12+D23+D27 -> 1921 | E6: =E7+E12+E23+E27 -> 102
A7: 501 | B7: 机关工资福利支出 | C7: 616 | D7: =SUM(D8:D11) -> 616
A8: 50101 | B8: 工资奖金津补贴 | D8: 418 | E8: 35
A9: 50102 | B9: 社会保障缴费 | D9: 144
A10: 50103 | B10: 住房公积金 | D10: 54
A11: 50199 | B11: 其他工资福利支出
A12: 502 | B12: 机关商品和服务支出 | C12: =D12+E12 -> 88 | E12: =SUM(E13:E22) -> 88
A13: 50201 | B13: 办公经费 | E13: 88
A14: 50202 | B14: 会议费
A15: 50203 | B15: 培训费
A16: 50204 | B16: 专用材料购置费
A17: 50205 | B17: 委托业务费
A18: 50206 | B18: 公务接待费
A19: 50207 | B19: 因公出国（境）费用
A20: 50208 | B20: 公务用车运行维护费
A21: 50209 | B21: 维修（护）费
A22: 50299 | B22: 其他商品和服务支出
A23: 505 | B23: 对事业单位经常性补助 | C23: =D23+E23 -> 1319 | D23: =SUM(D24:D26) -> 1305 | E23: =SUM(E24:E26) -> 14
A24: 50501 | B24: 工资福利支出 | D24: 1305
A25: 50502 | B25: 商品和服务支出 | E25: 14
A26: 50599 | B26: 其他对事业单位补助
A27: 509 | B27: 对个人和家庭的补助 | C27: =D27+E27 -> 0 | D27: =SUM(D28:D29) -> 0 | E27: =SUM(E28:E29) -> 0
A28: 50901 | B28: 社会福利和救助
A29: 50905 | B29: 退休费

Sheet 60、2021年政府基金收入明细
A1: 附表60
A2: 大洪山风景名胜区2022年政府性基金预算收入表
C3: 单位:万元
A4: 科目 | B4: 项目 | C4: 预算数 | D4: 备注
B5: 地方政府性基金收入合计 | C5: =C6+C7+C12+C15 -> 15477
B6: 一、农业土地开发资金收入
A7: 1030148 | B7: 二、国有土地使用权出让收入 | C7: =SUM(C8:C11) -> 15447
A8: 103014801 | B8: 土地出让价款收入 | C8: 15447
A9: 103014802 | B9: 补缴的土地价款
A10: 103014898 | B10: 缴纳新增建设用地土地有偿使用费
A11: 103014899 | B11: 其他土地出让收入
A12: 1030180 | B12: 三、彩票发行机构和彩票销售机构的业务费用
A13: 103018003 | B13: 福利彩票销售机构的业务费用
A14: 103018004 | B14: 体育彩票销售机构的业务费用
A15: 1030156 | B15: 四、城市基础设施配套费收入 | C15: 30
A16: 1300178 | B16: 五、污水处理费收入
A17: 1030199 | B17: 六、其他政府性基金收入
A18: 1031099 | B18: 七、其他政府性基金专项债务对应项目专项收入
A19: 103109998 | B19: 其他地方自行试点项目收益专项债券对应项目专项收入
B20: 转移性收入合计
A21: 11004 | B21: 一、政府性基金转移支付收入
A22: 1100404 | B22: 科学技术
A23: 1100405 | B23: 文化旅游体育与传媒
A24: 1100406 | B24: 社会保障和就业
A25: 1100407 | B25: 节能环保
A26: 1100408 | B26: 城乡社区
A27: 1100409 | B27: 农林水
A28: 1100410 | B28: 交通运输
A29: 1100411 | B29: 资源勘探工业信息等
A30: 1100499 | B30: 其他收入
A31: 11006 | B31: 二、政府性基金上解收入
A32: 11008 | B32: 三、 上年结余收入
A33: 1100802 | B33: 政府性基金预算上年结余收入
A34: 11009 | B34: 四、调入资金
A35: 11011 | B35: 五、 债务转贷收入
A36: 1101102 | B36: 地方政府专项债务转贷收入
A37: 110110211 | B37: 国有土地使用权出让金债务转贷收入
A38: 110110231 | B38: 土地储备专项债券转贷收入
A39: 110110233 | B39: 棚户区改造专项债券转贷收入
A40: 110110298 | B40: 其他地方自行试点项目收益专项债券转贷收入
A41: 110110299 | B41: 其他政府性基金债务转贷收入
B42: 收入总计 | C42: 15477

Sheet 61、2021年政府性基金支出明细
A1: 附表61
A2: 大洪山风景名胜区2022年政府性基金预算支出表
C3: 单位：万元
A4: 科目 | B4: 项 目 | C4: 预算数 | D4: 备注
B5: 地方政府性基金支出合计 | C5: =C11 -> 6999
A6: 208 | B6: 一、社会保障和就业支出
A7: 20822 | B7: 大中型水库移民后期扶持基金支出
A8: 2082201 | B8: 移民补助
A9: 2082202 | B9: 基础设施建设和经济发展
A10: 2082299 | B10: 其他大中型水库移民后期扶持资金支出
A11: 212 | B11: 二、城乡社区支出 | C11: =C12+C29 -> 6999
A12: 21208 | B12: 国有土地使用权出让收入安排的支出 | C12: =SUM(C13:C23) -> 6969
A13: 2120801 | B13: 征地和拆迁补偿支出 | C13: 1606
A14: 2120802 | B14: 土地开发支出
A15: 2120803 | B15: 城市建设支出
A16: 2120804 | B16: 农村基础设施建设支出 | C16: 391
A17: 2120805 | B17: 补助被征地农民支出 | C17: 1301
A18: 2120806 | B18: 土地出让业务支出
A19: 2120807 | B19: 廉租住房支出
A20: 2120810 | B20: 棚户区改造支出
A21: 2120811 | B21: 公共租赁住房支出
B22: 农业农村生态环境支出 | C22: 386
A23: 2120899 | B23: 其他国有土地使用权出让收入安排的支出 | C23: 3285
A24: 21210 | B24: 国有土地收益基金安排的支出
A25: 2121001 | B25: 征地和拆迁补偿支出
A26: 2121002 | B26: 土地开发支出
A27: 2121099 | B27: 其他国有土地收益基金支出
A28: 21211 | B28: 农业土地开发资金安排的支出
A29: 21213 | B29: 城市基础设施配套费安排的支出 | C29: =SUM(C30:C32) -> 30
A30: 2121301 | B30: 城市公共设施
A31: 2121302 | B31: 城市环境卫生 | C31: 30
A32: 2121399 | B32: 其他城市基础设施配套费安排的支出
A33: 21214 | B33: 污水处理费及对应专项债务收入安排的支出
A34: 2121401 | B34: 污水处理设施建设和运营
A35: 2121499 | B35: 其他污水处理费安排的支出
A36: 21216 | B36: 棚户区改造专项债券安排的支出
A37: 2121699 | B37: 其他棚户区改造专项债券安排的支出
A38: 214 | B38: 三、交通运输支出
A39: 21462 | B39: 车辆通行费安排的支出
A40: 2146299 | B40: 其他车辆通行费安排的支出
A41: 215 | B41: 四、资源勘探工业信息等支出
A42: 21562 | B42: 农网还贷资金支出
A43: 2156202 | B43: 地方农网还贷资金支出
A44: 216 | B44: 五、商业服务业等支出
A45: 21660 | B45: 旅游发展基金支出
A46: 2166004 | B46: 地方旅游开发项目补助
A47: 229 | B47: 六、其他支出
A48: 22904 | B48: 其他政府性基金及对应专项债务收入安排的支出
A49: 2290401 | B49: 其他政府性基金安排的支出
A50: 2290402 | B50: 其他地方自行试点项目收益专项债券收入安排的支出
A51: 22960 | B51: 彩票公益金安排的支出
A52: 2296002 | B52: 用于社会福利的彩票公益金支出
A53: 2296003 | B53: 用于体育事业的彩票公益金支出
A54: 2296005 | B54: 用于红十字事业的彩票公益金支出
A55: 2296006 | B55: 用于残疾人事业的彩票公益金支出
A56: 2296013 | B56: 用于城乡医疗救助的彩票公益金支出
A57: 232 | B57: 七、债务付息支出
A58: 23204 | B58: 地方政府专项债务付息支出
A59: 2320411 | B59: 国有土地使用权出让金债务付息支出
A60: 2320431 | B60: 土地储备专项债券付息支出
A61: 2320433 | B61: 棚户区改造专项债券付息支出
A62: 2320498 | B62: 其他地方自行试点项目收益专项债券付息支出
A63: 233 | B63: 八、债务发行费用支出
A64: 23304 | B64: 地方政府专项债务发行费用支出
A65: 2330411 | B65: 国有土地使用权出让金债务发行费用支出
A66: 2330431 | B66: 土地储备专项债券发行费用支出
A67: 234 | B67: 九、抗疫特别国债安排的支出
A68: 23401 | B68: 基础设施建设
A69: 2340101 | B69: 公共卫生体系建设
A70: 2340102 | B70: 重大疫情防控救治体系建设
A71: 2340199 | B71: 其他基础设施建设
A72: 23402 | B72: 抗疫相关支出
A73: 2340299 | B73: 抗疫相关支出
B74: 转移性支出合计 | C74: =C75+C82 -> 8478
A75: 230 | B75: 一、转移性支出 | C75: =C77+C79 -> 8478
A76: 23004 | B76: 政府性基金转移支付
A77: 23008 | B77: 调出资金 | C77: 5885
A78: 2300802 | B78: 政府性基金预算调出资金 | C78: 5885
A79: 23009 | B79: 年终结余 | C79: 2593
A80: 2300902 | B80: 政府性基金预算年终结余 | C80: 2593
A81: 23011 | B81: 债务转贷支出
A82: 231 | B82: 二、债务还本支出
A83: 23104 | B83: 地方政府专项债务还本支出
A84: 2310411 | B84: 国有土地使用权出让金债务还本支出
A85: 23105 | B85: 抗疫特别国债还本支出
B86: 支出总计 | C86: =C5+C74 -> 15477
